bitfinex-derivatives/quotes_BTCF0:USTF0_20241025
["timestamp","ask_amount","ask_price","bid_price","bid_amount"]
[1729841418128,0.3608,67311.0,67307.0,0.0046477]
[1729841418129,0.074324,67310.0,67307.0,0.0046477]
[1729841418331,0.074324,67310.0,67308.0,0.0046477]
[1729841418539,0.074324,67310.0,67306.0,0.04428572]
[1729841418728,0.074324,67310.0,67307.0,0.00464727]
[1729841418926,0.18998126,67310.0,67308.0,0.00464727]
[1729841419137,0.18998126,67310.0,67306.0,0.04428572]
[1729841419420,0.18998126,67310.0,67307.0,0.00464726]
[1729841419629,0.18998126,67310.0,67308.0,0.00464726]
[1729841419834,0.18998126,67310.0,67307.0,0.04428572]
[1729841420023,0.18998126,67310.0,67308.0,0.00464721]
[1729841420219,0.18998126,67310.0,67307.0,0.04428572]
[1729841420424,0.18998126,67310.0,67308.0,0.0046472]
[1729841420634,0.18998126,67310.0,67307.0,0.04428572]
[1729841420834,0.18998126,67310.0,67308.0,0.0046472]
[1729841421037,0.18998126,67310.0,67309.0,0.0046472]
[1729841421223,0.18998126,67310.0,67307.0,0.04428572]
[1729841421429,0.18998126,67310.0,67308.0,0.04893292]
[1729841421632,0.18998126,67310.0,67308.0,0.04428572]
[1729841422333,0.074324,67310.0,67308.0,0.04428572]
[1729841422535,0.3608,67311.0,67309.0,0.04428572]
[1729841422831,0.3608,67321.0,67310.0,0.15772658]
[1729841423039,0.074313,67320.0,67318.0,0.04428649]
[1729841423250,0.074313,67320.0,67319.0,0.04428649]
[1729841423429,0.074313,67320.0,67318.0,0.04428649]
[1729841423830,0.3608,67321.0,67319.0,0.04428649]
[1729841424035,0.3608,67328.0,67320.0,0.07578649]
[1729841424257,0.074305,67327.0,67323.0,0.04428649]
[1729841424430,0.074305,67327.0,67322.0,0.04428649]
[1729841424630,0.074305,67327.0,67323.0,0.04428649]
[1729841424827,0.3608,67328.0,67323.0,0.04428649]
[1729841425032,0.3608,67328.0,67324.0,0.074307]
[1729841425241,0.3608,67328.0,67325.0,0.074307]
[1729841425436,0.3608,67328.0,67326.0,0.004646]
[1729841425641,0.3608,67328.0,67326.0,0.074305]
[1729841425937,0.3608,67328.0,67326.0,0.16485365]
[1729841426148,0.3608,67328.0,67327.0,0.00464582]
[1729841426631,0.3608,67328.0,67327.0,0.06369447]
[1729841427240,0.47853727,67336.0,67327.0,0.06369447]
[1729841427241,0.36288001,67336.0,67334.0,0.074297]
[1729841427543,0.36288001,67336.0,67335.0,0.00464549]
[1729841427544,0.3608,67336.0,67335.0,0.00464549]
[1729841428238,0.3608,67336.0,67335.0,0.0816967]
[1729841428442,0.3608,67336.0,67335.0,0.15874791]
[1729841428641,0.3608,67336.0,67335.0,0.21775066]
[1729841429531,0.3608,67336.0,67335.0,0.00464549]
[1729841430234,0.01117654,67343.0,67335.0,0.0816967]
[1729841430437,0.074273,67356.0,67348.0,0.074282]
[1729841430643,0.3608,67358.0,67355.0,0.15410242]
[1729841431041,0.3608,67358.0,67354.0,0.074275]
[1729841431343,0.3608,67358.0,67354.0,0.1702]
[1729841431543,0.3608,67358.0,67343.0,0.0627]
[1729841431544,0.074272,67357.0,67355.0,1.5]
[1729841431940,0.435073,67357.0,67355.0,1.5]
[1729841432143,0.074277,67353.0,67347.0,0.21442486]
[1729841432339,0.074277,67353.0,67347.0,0.1702]
[1729841432340,0.3608,67349.0,67347.0,0.1702]
[1729841432637,0.074277,67353.0,67348.0,1.72608189]
[1729841432841,0.3608,67357.0,67352.0,0.11557262]
[1729841433145,0.074276,67354.0,67348.0,0.11557262]
[1729841433542,0.435072,67357.0,67348.0,0.11557262]
[1729841434037,0.3608,67357.0,67349.0,0.07428]
[1729841434240,0.3608,67357.0,67350.0,0.1702]
[1729841434939,0.3608,67357.0,67353.0,0.11557262]
[1729841435247,0.3608,67357.0,67355.0,0.074273]
[1729841435550,0.3608,67357.0,67356.0,0.11557262]
[1729841435755,0.3608,67357.0,67356.0,2.09127262]
[1729841436549,0.3608,67370.0,67360.0,0.074268]
[1729841436758,0.3608,67370.0,67362.0,0.23114524]
[1729841436942,0.435058,67370.0,67362.0,0.23114524]
[1729841437142,0.435058,67370.0,67362.0,0.30541124]
[1729841438436,0.3608,67363.0,67362.0,0.11557262]
[1729841438640,0.3608,67363.0,67356.0,0.0303]
[1729841438641,0.074268,67361.0,67356.0,0.244432]
[1729841439548,0.074268,67361.0,67356.0,0.17016]
[1729841440057,0.3608,67363.0,67356.0,0.17016]
[1729841440242,0.074262,67366.0,67357.0,0.074272]
[1729841440552,0.074267,67362.0,67358.0,0.17016]
[1729841440756,0.074269,67359.0,67352.0,0.074277]
[1729841440943,0.074269,67359.0,67353.0,0.17016]
[1729841442151,0.3608,67362.0,67356.0,0.59194524]
[1729841442450,0.3608,67363.0,67357.0,0.074271]
[1729841442639,0.074263,67365.0,67356.0,0.59194524]
[1729841442640,0.074263,67365.0,67360.0,0.11557262]
[1729841442947,0.074263,67365.0,67360.0,0.23114524]
[1729841443150,0.3608,67369.0,67360.0,0.23114524]
[1729841443342,0.3608,67369.0,67361.0,0.074267]
[1729841443541,0.435059,67369.0,67360.0,0.11557262]
[1729841443851,0.074261,67367.0,67358.0,0.07427]
[1729841444052,0.074261,67367.0,67359.0,0.17016]
[1729841444358,0.11557262,67370.0,67360.0,0.074268]
[1729841444654,0.074265,67363.0,67361.0,0.00464311]
[1729841444951,0.074265,67363.0,67357.0,0.244431]
[1729841445343,0.11557262,67359.0,67357.0,0.17016]
[1729841445543,0.3608,67365.0,67357.0,0.17016]
[1729841445741,0.3608,67365.0,67346.0,0.3608]
[1729841445742,0.47637262,67358.0,67346.0,0.3608]
[1729841445947,0.20747262,67357.0,67347.0,0.074282]
[1729841446149,0.435077,67352.0,67347.0,0.074282]
[1729841447547,0.435077,67352.0,67347.0,0.244402]
[1729841447748,0.3608,67352.0,67350.0,0.074279]
[1729841448048,0.3608,67352.0,67351.0,0.11557262]
[1729841448854,0.3608,67352.0,67351.0,0.28569262]
[1729841449045,0.3608,67352.0,67351.0,0.27569262]
[1729841449353,0.3608,67352.0,67351.0,0.17012]
[1729841449544,0.3608,67352.0,67351.0,1.67012]
[1729841450141,0.47849263,67365.0,67351.0,1.70202]
[1729841450345,0.3608,67365.0,67359.0,0.074269]
[1729841451252,0.435063,67365.0,67359.0,0.074269]
[1729841451946,0.47849263,67371.0,67364.0,0.11557262]
[1729841451947,0.0308,67369.0,67364.0,0.11557262]
[1729841452152,0.3608,67371.0,67369.0,0.074258]
[1729841452451,0.3608,67371.0,67366.0,0.04422486]
[1729841453140,0.074258,67370.0,67366.0,0.074261]
[1729841453653,0.074258,67370.0,67366.0,0.11848586]
[1729841454049,0.47637262,67371.0,67366.0,0.04422486]
[1729841454243,0.47637262,67371.0,67365.0,0.074262]
[1729841454244,0.07703947,67368.0,67365.0,0.074262]
[1729841454449,0.07703947,67367.0,67366.0,0.04422486]
[1729841454653,0.07703947,67367.0,67365.0,0.11848686]
[1729841455358,0.0318,67369.0,67365.0,0.11848686]
[1729841455551,0.0318,67369.0,67367.0,0.04436979]
[1729841455957,0.0318,67369.0,67366.0,0.04436979]
[1729841456145,0.0318,67369.0,67365.0,0.13322848]
[1729841456352,0.0318,67369.0,67366.0,0.074261]
[1729841456552,0.0318,67369.0,67366.0,0.13322748]
[1729841456760,0.0318,67369.0,67366.0,0.074261]
[1729841457664,0.0318,67369.0,67368.0,0.05896648]
[1729841458258,0.72368001,67371.0,67367.0,0.05896648]
[1729841458462,0.7216,67371.0,67370.0,0.07703947]
[1729841458857,0.7216,67371.0,67370.0,0.13600595]
[1729841459057,0.3608,67371.0,67370.0,0.08168236]
[1729841459360,0.3608,67379.0,67375.0,0.074252]
[1729841459557,0.3608,67379.0,67377.0,0.05925256]
[1729841459764,0.3608,67379.0,67378.0,0.00464289]
[1729841460259,0.3608,67379.0,67378.0,0.00464246]
[1729841460260,0.435047,67379.0,67378.0,0.00464246]
[1729841461155,0.15128847,67378.0,67374.0,0.05925256]
[1729841461459,0.074251,67377.0,67375.0,0.00464278]
[1729841461657,0.074251,67377.0,67376.0,0.00464278]
[1729841462363,0.074251,67377.0,67376.0,0.06389534]
[1729841462664,0.07425,67377.0,67376.0,0.06389534]
[1729841462854,0.07425,67377.0,67376.0,0.00464278]
[1729841463163,0.22832894,67377.0,67376.0,0.00464278]
[1729841463570,0.07425,67377.0,67376.0,0.00464278]
[1729841464263,0.15128947,67377.0,67376.0,0.00464278]
[1729841465259,0.15128947,67377.0,67376.0,0.0120709]
[1729841465772,0.07425,67377.0,67376.0,0.0120709]
[1729841466159,0.435048,67379.0,67376.0,0.0863219]
[1729841466466,0.074249,67378.0,67377.0,0.0120709]
[1729841467164,0.3608,67379.0,67377.0,0.0120709]
[1729841467360,0.435048,67379.0,67378.0,0.0120709]
[1729841468162,0.3608,67379.0,67378.0,0.0863199]
[1729841468671,0.3608,67379.0,67378.0,0.14555027]
[1729841468858,0.3608,67379.0,67378.0,0.0863199]
[1729841469278,0.3608,67379.0,67378.0,0.5315599]
[1729841469467,0.3608,67379.0,67378.0,0.5659599]
[1729841470568,0.3608,67385.0,67384.0,0.074242]
[1729841470863,0.3608,67392.0,67390.0,0.074235]
[1729841471069,0.3608,67392.0,67384.0,0.16614984]
[1729841471070,0.3608,67392.0,67391.0,0.23574106]
[1729841471265,0.3608,67392.0,67391.0,0.24038085]
[1729841471465,0.3608,67392.0,67391.0,0.29957203]
[1729841471777,0.3608,67392.0,67391.0,0.24038085]
[1729841472565,0.3608,67392.0,67391.0,0.16614685]
[1729841472771,0.3608,67392.0,67391.0,0.29951372]
[1729841473271,0.3608,67392.0,67391.0,0.24038085]
[1729841473465,0.3608,67392.0,67391.0,0.74467372]
[1729841474071,0.3608,67392.0,67391.0,0.68554085]
[1729841474267,0.3608,67400.0,67395.0,0.074229]
[1729841474472,0.3608,67400.0,67391.0,0.97210685]
[1729841474473,0.3608,67400.0,67399.0,0.04431206]
[1729841474661,0.3608,67400.0,67398.0,0.04430779]
[1729841474864,0.3608,67400.0,67399.0,0.08629108]
[1729841475872,0.3608,67400.0,67399.0,0.13057824]
[1729841476392,0.07703947,67409.0,67399.0,0.05633625]
[1729841476673,0.36288001,67411.0,67406.0,0.22829594]
[1729841476864,0.36288001,67411.0,67408.0,0.074215]
[1729841477066,0.074213,67410.0,67409.0,0.01206608]
[1729841477371,0.107513,67410.0,67409.0,0.01206608]
[1729841477560,0.107513,67410.0,67409.0,0.0046408]
[1729841478069,0.18455247,67410.0,67409.0,0.01206624]
[1729841478272,0.18455247,67410.0,67409.0,0.0046408]
[1729841478475,0.07703947,67409.0,67402.0,0.240302]
[1729841478774,0.3608,67405.0,67403.0,0.01206593]
[1729841478969,0.3608,67405.0,67404.0,0.01206593]
[1729841479769,0.43783947,67405.0,67404.0,0.01206593]
[1729841480565,0.3608,67405.0,67404.0,0.01206593]
[1729841480772,0.3608,67405.0,67404.0,0.08628593]
[1729841481970,0.3608,67405.0,67404.0,0.24036487]
[1729841482170,0.3608,67405.0,67404.0,0.284637]
[1729841482370,0.3608,67405.0,67404.0,0.28463643]
[1729841482974,0.3608,67405.0,67404.0,0.08628536]
[1729841483175,0.43783947,67405.0,67404.0,0.08628536]
[1729841483480,0.074228,67397.0,67396.0,0.04426903]
[1729841483779,0.51206747,67397.0,67396.0,0.00464134]
[1729841483967,0.51206747,67397.0,67392.0,0.074233]
[1729841483968,0.07703947,67396.0,67392.0,0.074233]
[1729841484174,0.07423,67395.0,67393.0,0.00464172]
[1729841484377,0.07423,67395.0,67394.0,0.00464172]
[1729841484981,0.14893947,67396.0,67395.0,0.07423]
[1729841485181,0.14893947,67396.0,67395.0,0.07887172]
[1729841485875,0.14893947,67396.0,67395.0,0.00464172]
[1729841485876,0.22316847,67396.0,67395.0,0.00464172]
[1729841486082,0.074238,67388.0,67387.0,0.074239]
[1729841486281,0.3608,67389.0,67388.0,0.074237]
[1729841486481,0.3608,67389.0,67388.0,0.0863052]
[1729841486877,0.3608,67389.0,67388.0,0.14537967]
[1729841487685,0.3608,67389.0,67388.0,0.0863052]
[1729841488181,0.3608,67389.0,67388.0,0.08630551]
[1729841488382,0.3608,67389.0,67388.0,0.13797063]
[1729841488571,0.3608,67389.0,67388.0,0.08630561]
[1729841488884,0.3608,67389.0,67388.0,0.24038455]
[1729841490083,0.3608,67389.0,67388.0,0.23295755]
[1729841490378,0.3608,67389.0,67388.0,0.23759914]
[1729841490886,0.3608,67389.0,67388.0,0.41110569]
[1729841492385,0.3608,67389.0,67388.0,0.09094675]
[1729841493381,0.51207547,67389.0,67388.0,0.06842841]
[1729841493581,0.51207547,67389.0,67388.0,0.0092832]
[1729841494379,0.58911494,67389.0,67388.0,0.0092832]
[1729841495390,0.58911494,67389.0,67388.0,0.00464159]
[1729841496180,0.58911494,67389.0,67388.0,0.01206902]
[1729841496376,0.51207547,67389.0,67388.0,0.01206902]
[1729841496580,0.435036,67389.0,67388.0,0.01206902]
[1729841501390,0.435036,67389.0,67388.0,0.01206949]
[1729841501789,0.3608,67389.0,67388.0,0.16334696]
[1729841501992,0.3608,67389.0,67388.0,0.24038643]
[1729841502192,0.3608,67389.0,67388.0,1.74038643]
[1729841505786,0.3608,67389.0,67388.0,1.89557574]
[1729841506001,0.3608,67389.0,67388.0,1.82186764]
[1729841506696,0.3608,67389.0,67388.0,1.74038503]
[1729841508297,0.435036,67389.0,67388.0,0.09339012]
[1729841508484,0.95723547,67389.0,67388.0,0.09339012]
[1729841508795,0.95723547,67389.0,67388.0,0.0308636]
[1729841509600,0.95723547,67389.0,67385.0,0.08844972]
[1729841509601,0.07424,67386.0,67385.0,0.08844972]
[1729841509898,0.51207947,67386.0,67385.0,0.08844972]
[1729841510295,0.95727947,67386.0,67385.0,0.08844972]
[1729841513992,0.88303947,67386.0,67381.0,0.05931016]
[1729841514203,0.51208347,67382.0,67381.0,0.05931016]
[1729841515694,0.95732347,67382.0,67381.0,0.05931016]
[1729841516203,0.51208347,67382.0,67381.0,0.05931016]
[1729841518202,0.435044,67382.0,67381.0,0.05931016]
[1729841519905,0.51208347,67382.0,67381.0,0.05931016]
[1729841520607,0.58912294,67382.0,67381.0,0.05931016]
[1729841520802,0.51208347,67382.0,67381.0,0.06395293]
[1729841521102,0.435044,67382.0,67381.0,0.00464277]
[1729841521606,0.435044,67382.0,67381.0,0.00464276]
[1729841521814,0.51208347,67382.0,67381.0,0.00464276]
[1729841522198,0.435044,67382.0,67381.0,0.00464276]
[1729841522401,0.51208347,67382.0,67381.0,0.00464276]
[1729841524502,0.51208347,67382.0,67381.0,0.01207078]
[1729841524707,0.435044,67382.0,67381.0,0.01207078]
[1729841524907,0.3051,67382.0,67381.0,0.16762287]
[1729841525116,0.2494,67382.0,67381.0,0.24466234]
[1729841525404,0.074235,67390.0,67381.0,0.25886706]
[1729841525607,0.435031,67394.0,67389.0,0.07703947]
[1729841525912,0.435031,67394.0,67393.0,0.074232]
[1729841526109,0.3608,67394.0,67393.0,0.24038172]
[1729841526407,0.074229,67396.0,67393.0,0.32124772]
[1729841526603,0.3608,67398.0,67394.0,0.12683678]
[1729841526806,0.3608,67398.0,67397.0,0.22830694]
[1729841527009,0.3608,67398.0,67397.0,0.32124372]
[1729841527308,0.435026,67398.0,67397.0,0.08607087]
[1729841527500,0.435026,67398.0,67397.0,0.01207078]
[1729841531114,0.074226,67398.0,67397.0,0.24037772]
[1729841531703,0.3608,67399.0,67397.0,0.16614972]
[1729841531905,0.074223,67402.0,67398.0,0.16614972]
[1729841532111,0.074223,67402.0,67399.0,0.01207078]
[1729841532405,0.074223,67402.0,67400.0,0.01207078]
[1729841532616,0.074223,67402.0,67401.0,0.01207078]
[1729841532807,0.074223,67402.0,67401.0,0.08629378]
[1729841533009,0.3608,67405.0,67403.0,0.074221]
[1729841533212,0.435019,67405.0,67404.0,0.01206616]
[1729841533418,0.435019,67405.0,67404.0,0.14821036]
[1729841533714,0.435019,67405.0,67404.0,0.2224172]
[1729841534618,0.435019,67405.0,67404.0,0.1481972]
[1729841535408,0.435019,67405.0,67404.0,0.08910563]
[1729841536122,0.435019,67405.0,67404.0,0.01206616]
[1729841536715,0.435019,67405.0,67404.0,0.00464083]
[1729841538906,0.51205847,67405.0,67404.0,0.00464083]
[1729841540110,0.435019,67405.0,67404.0,0.00464083]
[1729841540911,0.435019,67405.0,67404.0,0.00464101]
[1729841544308,0.435019,67405.0,67404.0,0.01206663]
[1729841544521,0.435019,67405.0,67404.0,0.01206636]
[1729841544717,0.435019,67405.0,67404.0,0.07115793]
[1729841544924,0.07422,67404.0,67403.0,0.05909157]
[1729841545312,0.07422,67404.0,67403.0,0.01206605]
[1729841546016,0.07422,67404.0,67403.0,0.06373121]
[1729841547025,0.07422,67404.0,67403.0,0.00464077]
[1729841549122,0.3608,67405.0,67403.0,0.08168024]
[1729841549428,0.3608,67405.0,67404.0,0.08168024]
[1729841549835,0.3608,67405.0,67404.0,0.23588981]
[1729841550031,0.3608,67405.0,67404.0,0.27208981]
[1729841551725,0.3608,67405.0,67404.0,0.36081073]
[1729841551931,0.3608,67405.0,67404.0,0.37183841]
[1729841552227,0.3608,67405.0,67404.0,0.37149896]
[1729841552425,0.3608,67405.0,67404.0,0.28277804]
[1729841552830,0.3608,67405.0,67404.0,0.24657804]
[1729841553230,0.3608,67405.0,67404.0,0.16133036]
[1729841553421,0.435019,67405.0,67404.0,0.22785089]
[1729841553919,0.435019,67405.0,67404.0,0.08429089]
[1729841554329,0.074219,67405.0,67404.0,0.08429089]
[1729841554529,0.074217,67408.0,67406.0,0.074218]
[1729841554830,0.074217,67408.0,67407.0,0.23836983]
[1729841555229,0.3608,67413.0,67407.0,0.23836983]
[1729841555432,0.43501,67413.0,67412.0,0.22817334]
[1729841555730,0.43501,67413.0,67412.0,0.08442838]
[1729841556628,0.43501,67413.0,67412.0,0.158498]
[1729841557219,0.43501,67413.0,67412.0,0.07975123]
[1729841560335,0.43501,67413.0,67412.0,0.08439157]
[1729841563241,0.51204947,67413.0,67412.0,0.08439157]
[1729841563437,0.51204947,67413.0,67412.0,0.1585006]
[1729841563627,0.54724947,67413.0,67412.0,0.15875118]
[1729841563931,0.43501,67413.0,67412.0,0.08460744]
[1729841564135,0.43501,67413.0,67412.0,0.15871599]
[1729841564331,0.43501,67413.0,67412.0,0.08460744]
[1729841565037,0.43501,67413.0,67412.0,0.15881844]
[1729841565933,0.43501,67413.0,67412.0,0.00464034]
[1729841566844,0.43501,67413.0,67412.0,0.07885134]
[1729841567042,0.43501,67413.0,67412.0,0.15850163]
[1729841567534,0.43501,67413.0,67412.0,0.15850133]
[1729841567729,0.43501,67413.0,67412.0,0.08429033]
[1729841568046,0.07421,67413.0,67412.0,0.15850133]
[1729841568936,0.43501,67413.0,67412.0,0.15850133]
[1729841569333,0.43501,67413.0,67412.0,0.08429033]
[1729841569535,0.51204947,67413.0,67412.0,0.08429033]
[1729841570231,0.43501,67413.0,67412.0,0.08429033]
[1729841570431,0.07421,67413.0,67412.0,0.08429033]
[1729841570834,0.43501,67413.0,67412.0,0.08429033]
[1729841571035,0.51204947,67413.0,67412.0,0.08429033]
[1729841571544,0.51204947,67413.0,67412.0,0.07874045]
[1729841571744,0.58908894,67413.0,67412.0,0.15850515]
[1729841572544,0.58908894,67413.0,67412.0,0.07874079]
[1729841573044,0.58908894,67413.0,67412.0,0.15851498]
[1729841573637,0.58908894,67413.0,67412.0,0.00464038]
[1729841577050,0.51204947,67413.0,67412.0,0.07885138]
[1729841577257,0.43501,67413.0,67412.0,0.07885138]
[1729841577550,0.51204947,67413.0,67412.0,0.07885138]
[1729841577944,0.58908894,67413.0,67412.0,0.00464038]
[1729841578143,0.07422,67404.0,67387.0,0.07703947]
[1729841578351,0.51205947,67404.0,67395.0,0.13588]
[1729841578650,0.51205947,67404.0,67396.0,0.074229]
[1729841578852,0.074224,67401.0,67396.0,0.074229]
[1729841579152,0.07703947,67398.0,67396.0,0.074229]
[1729841579656,0.07703947,67398.0,67397.0,0.074228]
[1729841580050,0.07703947,67398.0,67397.0,0.15406424]
[1729841580950,0.07703947,67398.0,67397.0,0.074228]
[1729841584468,0.43783947,67398.0,67397.0,0.074228]
[1729841585263,0.43783947,67398.0,67397.0,0.15419531]
[1729841586158,0.3608,67398.0,67397.0,0.30827425]
[1729841586562,0.3608,67398.0,67397.0,0.15419531]
[1729841586961,0.43783947,67398.0,67397.0,0.07996731]
[1729841587859,0.43783947,67398.0,67396.0,0.05419531]
[1729841590162,0.43783947,67398.0,67397.0,0.00464115]
[1729841590364,0.51206547,67398.0,67397.0,0.00464115]
[1729841590566,1.03422494,67398.0,67397.0,0.00464115]
[1729841590770,0.15126747,67397.0,67392.0,0.05923559]
[1729841590965,0.07703947,67392.0,67386.0,0.07403515]
[1729841591271,0.43783947,67387.0,67378.0,0.07403515]
[1729841591567,0.43783947,67387.0,67374.0,0.08897909]
[1729841591568,0.07703947,67376.0,67374.0,0.08897909]
[1729841591976,0.15129047,67376.0,67373.0,0.435053]
[1729841592269,0.15129047,67376.0,67375.0,0.07395794]
[1729841592461,0.074253,67374.0,67372.0,0.07395794]
[1729841592663,0.3608,67373.0,67372.0,0.07395794]
[1729841593071,0.3608,67373.0,67370.0,0.14821494]
[1729841593368,0.3608,67373.0,67370.0,0.074257]
[1729841593674,0.3608,67373.0,67368.0,0.07703947]
[1729841593973,0.3608,67373.0,67367.0,0.07703947]
[1729841593974,0.43783947,67373.0,67367.0,0.15130047]
[1729841594575,0.43783947,67373.0,67367.0,0.074261]
[1729841595069,0.51209347,67373.0,67367.0,0.074261]
[1729841595471,0.074255,67372.0,67367.0,0.074261]
[1729841595666,0.43783947,67373.0,67369.0,0.07703947]
[1729841595667,0.36296001,67373.0,67369.0,0.07703947]
[1729841595868,0.3608,67373.0,67370.0,0.146357]
[1729841596069,0.3608,67373.0,67372.0,0.07703947]
[1729841596272,0.3608,67373.0,67372.0,0.15407894]
[1729841596776,0.3608,67379.0,67372.0,0.15407894]
[1729841596966,0.3608,67379.0,67376.0,0.15407894]
[1729841599569,0.074242,67384.0,67376.0,0.15407894]
[1729841599776,0.074242,67384.0,67379.0,0.074247]
[1729841599969,0.074244,67382.0,67379.0,0.074247]
[1729841600174,0.074245,67381.0,67376.0,0.15407894]
[1729841600374,0.15128947,67377.0,67374.0,0.20249126]
[1729841600676,0.07703947,67376.0,67372.0,0.20249126]
[1729841600863,0.07703947,67373.0,67372.0,0.12864]
[1729841601175,0.22833294,67373.0,67371.0,0.0376]
[1729841601773,0.3608,67372.0,67371.0,0.0376]
[1729841601975,0.435056,67372.0,67370.0,0.12864]
[1729841602368,0.435056,67372.0,67367.0,0.12864]
[1729841602369,0.074257,67370.0,67367.0,0.12864]
[1729841602765,0.074257,67370.0,67368.0,0.00464306]
[1729841602766,0.07703947,67369.0,67368.0,0.00464306]
[1729841603071,0.15407894,67369.0,67363.0,0.0347]
[1729841603265,0.15130247,67365.0,67364.0,0.13328335]
[1729841603581,0.15130247,67365.0,67364.0,0.12864]
[1729841604073,0.07703947,67365.0,67363.0,0.0347]
[1729841604279,0.074264,67364.0,67363.0,0.0347]
[1729841604474,0.074264,67364.0,67363.0,0.03934338]
[1729841604679,0.363,67366.0,67363.0,0.03934338]
[1729841604873,0.3608,67366.0,67364.0,0.07890738]
[1729841605177,0.3608,67366.0,67365.0,0.22834194]
[1729841605373,0.3608,67366.0,67365.0,0.23298507]
[1729841606264,0.3608,67366.0,67365.0,0.22834194]
[1729841606476,0.3608,67366.0,67365.0,0.12868]
[1729841606673,0.3608,67366.0,67363.0,0.0347]
[1729841606883,0.074264,67364.0,67363.0,0.0347]
[1729841608574,0.36288001,67366.0,67363.0,0.0347]
[1729841608777,0.3608,67366.0,67365.0,0.04431915]
[1729841609078,0.435062,67366.0,67365.0,0.04431915]
[1729841611281,0.3608,67366.0,67365.0,0.19839809]
[1729841611478,0.3608,67366.0,67363.0,0.108965]
[1729841614383,0.074261,67367.0,67364.0,0.074264]
[1729841618183,0.074261,67367.0,67364.0,0.14811526]
[1729841618579,0.074262,67366.0,67364.0,0.14811526]
[1729841619283,0.074262,67366.0,67365.0,0.07898275]
[1729841619476,0.435062,67366.0,67365.0,0.15304091]
[1729841619676,0.435062,67366.0,67357.0,0.01139718]
[1729841619677,0.07703947,67365.0,67363.0,0.07406228]
[1729841619878,0.074265,67363.0,67362.0,0.07406288]
[1729841620078,0.074272,67357.0,67356.0,0.07406288]
[1729841620286,0.07703947,67356.0,67344.0,0.08897909]
[1729841620587,0.3608,67350.0,67345.0,0.23381252]
[1729841620887,0.3608,67350.0,67349.0,0.22835894]
[1729841621089,0.3608,67350.0,67349.0,0.43077252]
[1729841621278,0.3608,67350.0,67349.0,0.96983599]
[1729841621779,0.3608,67350.0,67349.0,0.3127369]
[1729841622086,0.3608,67350.0,67349.0,0.8808569]
[1729841622294,0.3608,67350.0,67349.0,0.4354169]
[1729841622785,0.3608,67350.0,67349.0,0.43552631]
[1729841622986,0.3608,67350.0,67349.0,0.31284631]
[1729841623196,0.3608,67350.0,67349.0,0.43552631]
[1729841624281,0.07703947,67358.0,67354.0,0.074275]
[1729841624589,0.074272,67357.0,67355.0,0.15817183]
[1729841624781,0.074272,67357.0,67355.0,0.07868868]
[1729841624976,0.07703947,67358.0,67356.0,0.00464438]
[1729841625177,0.074269,67360.0,67357.0,0.15346193]
[1729841625489,0.074269,67360.0,67358.0,0.07941763]
[1729841625681,0.074269,67360.0,67359.0,0.15345408]
[1729841625881,0.074269,67360.0,67359.0,0.15345396]
[1729841626392,0.3608,67363.0,67360.0,0.074268]
[1729841626584,0.3608,67363.0,67361.0,0.35617657]
[1729841626790,0.3608,67363.0,67362.0,0.07941763]
[1729841626981,0.3608,67363.0,67362.0,0.15368363]
[1729841627288,0.3608,67363.0,67362.0,0.15344076]
[1729841627480,0.435065,67363.0,67362.0,0.07917476]
[1729841628081,0.3608,67363.0,67362.0,0.07917476]
[1729841628283,0.3608,67363.0,67362.0,0.59880076]
[1729841628487,0.3608,67363.0,67362.0,0.60985966]
[1729841628686,0.3608,67363.0,67362.0,0.69883875]
[1729841628990,0.3608,67363.0,67362.0,0.60985966]
[1729841629197,0.43713601,67371.0,67362.0,0.53559366]
[1729841629389,0.3608,67371.0,67370.0,0.07406501]
[1729841629588,0.3608,67371.0,67370.0,0.15343176]
[1729841629784,0.3608,67371.0,67370.0,0.20185476]
[1729841630091,0.435056,67371.0,67370.0,0.20185476]
[1729841630685,0.435056,67371.0,67370.0,0.07917476]
[1729841630891,0.435056,67371.0,67370.0,0.20185476]
[1729841632990,0.3608,67371.0,67369.0,0.07409553]
[1729841633185,0.3608,67371.0,67368.0,0.12268]
[1729841633186,0.15129747,67369.0,67368.0,0.12268]
[1729841633387,0.07703947,67369.0,67367.0,0.07409475]
[1729841633694,0.074261,67367.0,67366.0,0.19677475]
[1729841633892,0.15130047,67367.0,67366.0,0.27610435]
[1729841634196,0.15130047,67367.0,67366.0,0.27610712]
[1729841634499,0.15130047,67367.0,67366.0,0.19677752]
[1729841634698,0.15130047,67367.0,67366.0,0.07409752]
[1729841635289,0.22833994,67367.0,67366.0,0.07409752]
[1729841637085,0.074262,67366.0,67365.0,0.07409752]
[1729841637292,0.145262,67366.0,67365.0,0.15318048]
[1729841638398,0.145262,67366.0,67365.0,0.15318696]
[1729841638399,0.506062,67366.0,67365.0,0.15318696]
[1729841638594,0.58310147,67366.0,67365.0,0.15318696]
[1729841638793,0.58310147,67366.0,67365.0,0.074104]
[1729841638994,0.58310147,67366.0,67365.0,0.15326644]
[1729841639196,0.58310147,67366.0,67365.0,0.074104]
[1729841640090,0.58310147,67366.0,67364.0,0.074104]
[1729841640091,0.50883947,67366.0,67364.0,0.074104]
[1729841640302,0.435063,67365.0,67364.0,0.074104]
[1729841640501,0.435063,67365.0,67364.0,0.15326508]
[1729841643302,0.435063,67365.0,67364.0,0.15326053]
[1729841643800,0.3608,67365.0,67358.0,0.07410678]
[1729841644004,0.43783947,67359.0,67357.0,0.07410678]
[1729841644204,0.074271,67358.0,67357.0,0.07410678]
[1729841644405,0.3608,67359.0,67357.0,0.07410678]
[1729841644406,0.3608,67359.0,67358.0,0.074271]
[1729841644616,0.3608,67359.0,67358.0,0.15352828]
[1729841644905,0.074268,67361.0,67358.0,0.15352828]
[1729841645107,0.074268,67361.0,67359.0,0.07925728]
[1729841645306,0.074268,67361.0,67360.0,0.07925728]
[1729841646513,0.07703947,67364.0,67360.0,0.15629675]
[1729841646701,0.3608,67365.0,67363.0,0.24295696]
[1729841646901,0.3608,67365.0,67364.0,0.07925728]
[1729841647999,0.3608,67365.0,67364.0,0.31943877]
[1729841648299,0.36288001,67374.0,67369.0,0.074258]
[1729841648598,0.074255,67373.0,67370.0,0.0789336]
[1729841648798,0.074255,67373.0,67371.0,0.0789336]
[1729841649007,0.074255,67373.0,67372.0,0.0789336]